bitfinex/quotes_ETHUSD_20240711
["timestamp","ask_amount","ask_price","bid_price","bid_amount"]
[1720665750746,1.112274,3116.0,3115.1,2.50208553]
[1720665750947,0.33584022,3116.1,3115.3,2.4146]
[1720665759845,0.33584022,3116.1,3115.3,2.47878684]
[1720665760054,0.33584022,3116.1,3115.5,2.3199]
[1720665760379,0.33584022,3116.1,3115.5,2.38408253]
[1720665761876,0.33584022,3116.1,3115.6,2.50218255]
[1720665763793,0.33584022,3116.1,3115.6,2.438]
[1720665768074,0.33584022,3116.1,3115.7,2.52427729]
[1720665768309,0.33584022,3116.1,3115.9,2.4601]
[1720665773913,9.523,3117.3,3116.1,2.4554]
[1720665774115,1.76898402,3117.2,3116.2,0.06417007]
[1720665774313,0.33587925,3116.8,3116.2,0.06417007]
[1720665774488,2.4353,3117.6,3116.3,2.4554]
[1720665774698,0.33587014,3117.0,3116.4,0.31612184]
[1720665774917,1.111853,3116.9,3116.4,0.31612184]
[1720665775235,0.3358817,3117.0,3116.4,0.31612184]
[1720665775443,1.11184524,3116.9,3116.4,0.31612184]
[1720665775598,0.3358817,3117.0,3116.4,0.31612184]
[1720665775923,1.11184687,3116.9,3116.4,0.31612184]
[1720665776097,0.3358817,3117.0,3116.4,0.31612184]
[1720665776298,1.11184607,3116.9,3116.3,2.4554]
[1720665776506,1.11184607,3116.8,3116.3,2.4554]
[1720665776719,1.11184607,3116.9,3116.3,2.4554]
[1720665776890,1.11184607,3116.8,3116.3,2.4554]
[1720665777089,0.3358817,3117.0,3116.3,2.4554]
[1720665777090,1.11184607,3116.9,3116.3,2.4554]
[1720665777911,0.09047916,3116.8,3116.3,2.4554]
[1720665778099,1.11184607,3116.7,3116.3,2.4554]
[1720665778302,0.09046789,3116.7,3116.3,2.4554]
[1720665778499,1.11201174,3116.6,3116.3,2.4554]
[1720665778737,1.11201174,3116.5,3116.3,2.4554]
[1720665778935,1.11201174,3116.5,3115.9,2.4921]
[1720665779237,0.09053298,3116.4,3115.9,2.4921]
[1720665779567,1.11211403,3116.9,3115.9,2.4921]
[1720665779838,2.1510211,3116.8,3115.9,2.4921]
[1720665779990,1.11211403,3116.7,3115.9,2.4921]
[1720665780191,1.11211403,3116.6,3115.9,2.4921]
[1720665780510,1.11211403,3116.5,3115.9,2.4921]
[1720665780712,1.71894955,3116.4,3115.9,2.4921]
[1720665780890,1.11211403,3116.3,3115.9,2.4921]
[1720665781085,0.09037657,3116.4,3115.9,2.4921]
[1720665781332,0.09037657,3116.4,3114.7,2.003]
[1720665781333,0.09035403,3116.2,3115.4,2.4238]
[1720665781491,1.11211403,3116.1,3115.4,2.4238]
[1720665781689,1.11239964,3116.0,3115.4,2.4238]
[1720665781887,1.11239964,3115.9,3115.4,2.4238]
[1720665782096,1.11239964,3115.8,3115.4,2.4238]
[1720665782290,1.11239964,3115.8,3114.7,7.4]
[1720665782291,1.11239964,3115.7,3114.8,2.4559]
[1720665782533,1.11239964,3115.7,3114.9,0.98559]
[1720665782827,1.11239964,3115.6,3115.0,0.06419778]
[1720665782991,0.09018544,3115.6,3115.1,2.3122]
[1720665783413,2.4992,3116.4,3115.1,2.3122]
[1720665783647,1.11231822,3116.3,3115.1,2.3122]
[1720665783829,1.11231822,3116.2,3115.1,2.3122]
[1720665784029,1.11231822,3116.1,3115.2,0.23122]
[1720665784214,1.11231822,3116.0,3115.2,0.23122]
[1720665784417,1.11231822,3115.9,3115.2,0.23122]
[1720665784716,1.11231822,3115.8,3115.2,0.23122]
[1720665784933,0.09004051,3115.8,3115.2,0.23122]
[1720665785136,1.11234063,3115.7,3115.1,2.3122]
[1720665785433,1.20236099,3115.6,3115.1,2.3122]
[1720665785634,0.09002036,3115.6,3115.1,2.3122]
[1720665785949,0.37016079,3116.2,3115.2,0.23122]
[1720665786158,1.1123712,3116.1,3115.1,2.3122]
[1720665786329,1.1123712,3116.0,3115.2,0.0641909]
[1720665786514,1.1123712,3115.9,3115.2,0.0641909]
[1720665786856,0.09007083,3115.9,3115.2,0.0641909]
[1720665787022,3.0,3116.5,3115.2,0.0641909]
[1720665787230,2.21613905,3116.4,3115.4,2.3793]
[1720665787429,1.11225731,3116.3,3115.4,2.3793]
[1720665787738,1.11225731,3116.2,3115.4,2.44348279]
[1720665787934,1.1121918,3116.1,3115.4,2.3793]
[1720665788126,0.08985172,3116.1,3115.4,2.3793]
[1720665788326,1.11225241,3116.0,3115.4,2.3793]
[1720665788519,0.08984044,3116.0,3115.5,0.26169391]
[1720665788714,2.4163,3116.7,3115.5,0.26169391]
[1720665789017,1.11225438,3116.5,3115.5,0.26169391]
[1720665789239,1.11225438,3116.4,3115.5,0.26169391]
[1720665789545,1.11225438,3116.3,3115.5,0.26169391]
[1720665789754,1.11225438,3116.2,3115.6,0.26409939]
[1720665789929,0.08990163,3116.2,3115.6,0.26409939]
[1720665790127,2.4163,3116.7,3115.6,0.26409939]
[1720665790463,0.08989416,3116.1,3115.6,0.26409939]
[1720665790641,7.4759502,3116.6,3115.6,0.26409939]
[1720665790826,0.08988288,3116.0,3115.6,0.26409939]
[1720665791034,7.4759502,3116.6,3115.6,0.26409939]
[1720665791225,1.11221396,3116.5,3115.6,0.26409939]
[1720665791555,1.11221396,3116.4,3115.6,0.26409939]
[1720665791716,0.0899318,3116.4,3115.6,0.26409939]
[1720665791920,1.11220255,3116.3,3115.6,0.26409939]
[1720665792132,1.11220255,3116.2,3115.6,0.26409939]
[1720665792423,0.08991306,3116.2,3115.6,0.26409939]
[1720665792924,1.20213099,3116.1,3115.6,0.26409939]
[1720665793253,0.08990178,3116.1,3115.6,0.26409939]
[1720665793461,1.11226996,3116.0,3115.4,2.3793]
[1720665793645,0.08990178,3116.1,3115.4,2.3793]
[1720665793646,0.3359502,3116.6,3115.4,2.3793]
[1720665793847,0.08993127,3115.9,3115.4,2.3793]
[1720665794050,0.08993127,3115.9,3115.5,0.23793]
[1720665794254,0.3359502,3116.6,3115.4,2.3793]
[1720665794255,1.1123679,3115.8,3115.4,2.3793]
[1720665794546,0.08991999,3115.8,3114.9,2.384]
[1720665795061,4.2618,3116.5,3114.9,2.384]
[1720665795236,0.08988838,3115.7,3114.9,2.384]
[1720665795433,0.08988838,3115.7,3115.0,1.2784]
[1720665795753,4.2618,3116.5,3115.0,4.2784]
[1720665795922,2.35801035,3116.4,3115.0,4.2784]
[1720665796118,2.35801035,3116.3,3115.0,4.2784]
[1720665796320,1.11232314,3116.2,3115.0,4.2784]
[1720665796524,1.11232314,3116.1,3115.1,0.66624]
[1720665796755,1.11232314,3116.0,3115.1,0.66624]
[1720665796965,1.11232314,3115.9,3115.1,0.66624]
[1720665797160,4.2618,3116.5,3115.1,0.66624]
[1720665797364,2.35792563,3116.4,3115.1,0.66624]
[1720665797659,1.11231791,3116.3,3115.2,2.904964]
[1720665797870,1.11230561,3116.2,3115.2,2.904964]
[1720665798041,1.20218664,3116.2,3115.2,2.904964]
[1720665798373,0.08988103,3116.2,3115.2,2.904964]
[1720665798571,1.11229628,3116.1,3115.2,2.904964]
[1720665798743,1.11229628,3116.1,3115.3,0.3571204]
[1720665798950,1.20234599,3116.0,3115.3,0.3571204]
[1720665799151,1.11229628,3115.9,3115.3,0.3571204]
[1720665799451,0.09002716,3115.8,3115.3,0.3571204]
[1720665800078,2.2588,3116.5,3115.3,0.3571204]
[1720665800233,0.09001589,3115.7,3115.3,0.3571204]
[1720665800765,2.2588,3116.5,3115.3,0.3571204]
[1720665800965,1.11231226,3116.4,3115.3,0.3571204]
[1720665801272,1.11231226,3116.3,3115.3,0.3571204]
[1720665801469,1.11231226,3116.2,3115.3,0.3571204]
[1720665801674,1.11231226,3116.1,3115.4,0.32620844]
[1720665801859,1.11231226,3116.0,3115.4,0.32620844]
[1720665802051,1.11232369,3115.9,3115.4,0.32620844]
[1720665802374,1.11232369,3115.9,3115.2,2.904964]
[1720665802375,1.11234827,3115.8,3115.2,2.904964]
[1720665802552,0.09004862,3115.9,3115.2,2.904964]
[1720665802753,0.09002366,3115.7,3115.2,2.904964]
[1720665803075,2.2588,3116.5,3115.2,2.904964]
[1720665803274,1.1123537,3116.4,3115.2,2.4105]
[1720665803475,1.1123537,3116.3,3115.2,2.4105]
[1720665803683,0.09008647,3116.3,3115.2,2.4105]
[1720665803862,1.1123537,3116.2,3115.2,2.4105]
[1720665804040,1.20243078,3116.2,3115.2,2.4105]
[1720665804244,1.1123537,3116.1,3115.2,2.65155]
[1720665804546,0.09002558,3116.0,3115.2,2.65155]
[1720665804761,1.1123537,3115.9,3115.2,2.65155]
[1720665805286,0.09000303,3115.8,3115.2,2.65155]
[1720665805582,1.11238981,3115.7,3115.2,2.65155]
[1720665805739,1.11238981,3115.6,3115.3,0.265155]
[1720665806081,4.2618,3116.5,3115.3,0.265155]
[1720665806250,1.11236167,3116.4,3115.3,0.265155]
[1720665806456,1.11236167,3116.3,3115.3,0.265155]
[1720665806686,1.11236167,3116.2,3115.3,0.265155]
[1720665806852,1.11236167,3116.1,3115.3,0.265155]
[1720665807054,1.11236167,3116.0,3115.3,0.265155]
[1720665807270,0.09002961,3116.1,3115.2,2.4105]
[1720665807470,1.11236167,3116.0,3115.2,2.4105]
[1720665807781,1.20240542,3116.0,3115.2,2.4105]
[1720665808084,1.11236167,3115.9,3115.2,2.4105]
[1720665808247,1.20239796,3115.9,3115.2,2.4105]
[1720665808445,1.11236167,3115.8,3114.6,2.2765]
[1720665808648,2.44853629,3115.9,3114.7,0.52765]
[1720665808883,1.11250966,3115.8,3114.6,2.2765]
[1720665809083,1.11250966,3115.7,3114.6,2.2765]
[1720665809245,1.20250814,3115.8,3114.6,2.2765]
[1720665809440,1.11250966,3115.7,3114.6,2.2765]
[1720665809767,0.08997593,3115.6,3114.6,2.2765]
[1720665809978,1.11250966,3115.5,3114.7,0.22765]
[1720665810684,0.08995338,3115.4,3114.7,0.22765]
[1720665810978,1.11250966,3115.3,3114.7,0.22765]
[1720665811480,0.08993082,3115.2,3114.7,0.22765]
[1720665811682,1.11250966,3115.1,3114.7,0.22765]
[1720665812049,0.089823,3115.1,3114.7,0.22765]
[1720665812347,2.3585,3115.9,3114.8,0.250415]
[1720665812543,0.08981173,3115.0,3114.6,2.2765]
[1720665812786,2.3585,3115.9,3114.6,2.2765]
[1720665813081,1.11254652,3115.8,3114.6,2.2765]
[1720665813277,1.11254652,3115.7,3114.6,2.2765]
[1720665813482,1.20242942,3115.8,3114.6,2.2765]
[1720665813682,1.46863946,3115.7,3114.6,2.2765]
[1720665813887,1.11254652,3115.6,3114.6,2.2765]
[1720665814185,1.11254652,3115.5,3114.6,2.2765]
[1720665814386,1.11254652,3115.4,3114.6,2.2765]
[1720665814545,0.08984541,3115.4,3114.6,2.2765]
[1720665814746,1.11254652,3115.3,3114.6,2.50415]
[1720665814947,0.08982015,3115.2,3114.6,2.50415]
[1720665815178,1.11254652,3115.1,3114.6,2.50415]
[1720665815591,0.0897976,3115.0,3114.6,2.50415]
[1720665816269,0.35609294,3115.7,3114.6,2.50415]
[1720665816466,1.11253163,3115.6,3114.7,0.250415]
[1720665816684,1.11253163,3115.5,3114.7,0.250415]
[1720665817058,1.11253163,3115.5,3114.6,2.2765]
[1720665817059,0.08984271,3115.4,3114.6,2.2765]
[1720665817385,1.11253163,3115.3,3114.6,2.2765]
[1720665817847,0.08980084,3115.2,3114.6,2.2765]
[1720665818044,1.11253163,3115.1,3114.6,2.2765]
[1720665818693,1.11253163,3115.6,3114.6,2.2765]
[1720665818875,1.11253163,3115.5,3114.6,2.2765]
[1720665819075,2.3732,3115.4,3113.9,2.4199]
[1720665819390,1.44862138,3115.3,3114.0,0.98199]
[1720665819690,1.1126697,3115.2,3113.9,2.4199]
[1720665820077,0.08963715,3115.1,3113.9,2.4199]
[1720665820280,1.1126697,3115.0,3113.9,2.4199]
[1720665820456,0.08959286,3114.9,3113.9,2.4199]
[1720665820656,1.1126697,3114.8,3113.9,2.4199]
[1720665820992,0.08954873,3114.7,3113.9,2.4199]
[1720665821187,1.1126697,3114.6,3113.9,2.66189]
[1720665821582,0.08952616,3114.5,3113.9,2.66189]
[1720665821956,2.24930202,3115.3,3113.9,2.66189]
[1720665822180,2.24930202,3115.3,3113.9,2.4199]
[1720665822181,1.20229957,3115.2,3113.9,2.4199]
[1720665822350,0.08951097,3115.2,3113.9,2.4199]
[1720665822553,1.11276617,3115.1,3113.9,2.4199]
[1720665822804,1.20224975,3115.0,3113.9,2.4199]
[1720665823089,1.11276617,3114.9,3113.9,2.4199]
[1720665823250,0.08946102,3114.8,3114.0,0.24199]
[1720665823453,1.11276617,3114.7,3114.0,0.24199]
[1720665823649,0.08943845,3114.6,3114.0,0.24199]
[1720665824067,0.33596674,3115.2,3114.0,0.24199]
[1720665824264,1.37130019,3115.1,3114.0,0.24199]
[1720665824472,1.11277331,3115.0,3114.0,0.24199]
[1720665824662,1.11277331,3114.9,3114.0,0.24199]
[1720665824862,1.11277331,3114.8,3114.0,0.24199]
[1720665825185,1.20222304,3114.7,3114.0,0.24199]
[1720665825389,0.08944973,3114.7,3114.0,0.24199]
[1720665825682,0.25852688,3115.1,3114.0,0.24199]
[1720665825882,0.25852688,3115.1,3113.9,2.4199]
[1720665825883,2.4781,3114.9,3113.9,2.4199]
[1720665826093,0.08947389,3114.8,3113.3,2.3669]
[1720665826401,1.20235533,3114.8,3113.3,2.3669]
[1720665826560,1.68122697,3114.7,3113.4,0.53669]
[1720665826755,1.20222519,3114.6,3113.5,2.3669]
[1720665826959,1.11288144,3114.5,3113.5,2.3669]
[1720665827183,1.11288144,3114.5,3113.5,5.3669]
[1720665827184,0.08932119,3114.4,3113.5,5.3669]
[1720665827381,1.11288144,3114.3,3113.5,5.957259]
[1720665827792,0.56834553,3114.7,3113.5,5.957259]
[1720665827793,0.08929481,3114.2,3113.5,5.957259]
[1720665828173,0.56834553,3114.7,3113.5,5.957259]
[1720665828399,1.20227444,3114.6,3113.5,5.957259]
[1720665828562,1.11292688,3114.5,3113.5,5.957259]
[1720665828892,0.0892308,3114.4,3113.6,0.5957259]
[1720665829103,0.0892308,3114.4,3113.6,3.5957259]
[1720665829458,0.56834553,3114.7,3113.6,3.5957259]
[1720665829665,0.08922918,3114.3,3113.6,3.5957259]
[1720665829859,0.0892179,3114.2,3113.6,3.5957259]
[1720665830177,4.4811,3114.9,3113.7,0.59626259]
[1720665830496,1.20219626,3114.8,3113.7,0.59626259]
[1720665830803,1.11292033,3114.7,3113.7,0.59626259]
[1720665830961,1.11292033,3114.6,3113.7,0.59626259]
[1720665831156,1.20216,3114.5,3113.7,0.59626259]
[1720665831360,1.20216,3114.5,3113.8,0.35962626]
[1720665831361,0.08923967,3114.5,3113.8,0.35962626]
[1720665831602,4.4811,3114.9,3113.8,0.35962626]
[1720665831805,0.08922839,3114.4,3113.7,0.59626259]
[1720665832124,4.4811,3114.9,3113.7,0.59626259]
[1720665832300,4.4811,3114.9,3113.6,3.0]
[1720665832301,0.0892171,3114.3,3113.6,3.0]
[1720665832602,0.08920582,3114.2,3113.5,2.3669]
[1720665832973,4.4811,3114.9,3113.5,2.3669]
[1720665833161,1.20220254,3114.8,3113.5,2.3669]
[1720665833361,1.11292902,3114.7,3113.6,0.23669]
[1720665833597,1.20217997,3114.6,3113.6,3.23669]
[1720665833801,1.11292902,3114.5,3113.6,3.23669]
[1720665834160,0.0892204,3114.4,3113.6,3.23669]
[1720665834365,0.0892204,3114.4,3113.6,0.23669]
[1720665834573,1.11295455,3114.3,3113.6,0.23669]
[1720665834771,0.08920024,3114.2,3113.6,0.23669]
[1720665834997,0.50494303,3114.7,3113.5,2.3669]
[1720665835200,1.11296959,3114.6,3113.5,2.3669]
[1720665835402,1.11296959,3114.5,3113.5,2.3669]
[1720665835603,0.08924538,3114.6,3113.5,2.3669]
[1720665835604,1.11296959,3114.4,3113.5,2.3669]
[1720665835776,0.08921213,3114.4,3113.6,0.23669]
[1720665836009,0.50494303,3114.7,3113.6,0.23669]
[1720665836332,1.11293111,3114.6,3113.6,0.23669]
[1720665836693,1.11293111,3114.5,3113.6,0.23669]
[1720665836898,0.08922722,3114.5,3113.6,0.23669]
[1720665837092,1.11293111,3114.4,3113.6,0.23669]
[1720665837294,0.08907323,3114.3,3113.7,0.260359]
[1720665837833,0.50494303,3114.7,3113.7,0.260359]
[1720665837996,0.08906575,3114.2,3113.5,2.3669]
[1720665838196,0.84100022,3114.7,3113.5,2.3669]
[1720665838397,1.1129635,3114.6,3113.5,2.3669]
[1720665838698,1.11296394,3114.5,3113.5,2.3669]
[1720665838899,1.20204985,3114.4,3113.5,2.3669]
[1720665839099,1.11296394,3114.3,3113.6,0.23669]
[1720665839334,0.08908591,3114.4,3113.6,0.23669]
[1720665839653,1.20200656,3114.3,3113.6,0.23669]
[1720665840128,0.08907462,3114.3,3113.7,2.2638]
[1720665840343,0.33605719,3114.7,3113.7,2.2638]
[1720665840490,1.20192636,3114.6,3113.7,2.2638]
[1720665840696,0.834,3114.4,3113.7,2.2638]
[1720665840936,0.834,3114.4,3113.8,0.22638]
[1720665840937,0.08906652,3114.3,3113.8,0.22638]
[1720665843132,1.1129519,3114.2,3113.8,0.22638]
[1720665843335,1.1129519,3114.2,3113.7,2.2638]
[1720665843336,0.089016,3114.1,3113.7,2.2638]
[1720665843550,0.834,3114.4,3113.7,2.2638]
[1720665843759,1.20199551,3114.3,3113.7,2.2638]
[1720665843925,1.94695313,3114.2,3113.7,2.2638]
[1720665844132,1.11295313,3114.1,3113.3,2.3996]
[1720665844344,1.11295313,3114.1,3113.4,0.53996]
[1720665844672,0.08900852,3114.0,3113.4,3.53996]
[1720665845246,0.834,3114.2,3113.4,3.53996]
[1720665845469,0.08900104,3113.9,3113.4,3.53996]
[1720665845751,0.08898975,3113.8,3113.5,0.593956]
[1720665845959,0.834,3114.2,3113.5,0.593956]
[1720665846113,1.20191377,3114.1,3113.5,0.593956]
[1720665846316,1.11293117,3114.0,3113.5,0.593956]
[1720665846515,0.834,3114.2,3113.5,0.593956]
[1720665846516,0.08894789,3113.9,3113.5,0.593956]
[1720665846715,0.834,3114.2,3113.6,0.3593956]
[1720665846912,1.20194475,3114.1,3113.6,0.3593956]
[1720665847196,1.11297047,3114.0,3113.6,0.3593956]
[1720665847330,0.08895551,3113.9,3113.6,0.3593956]
[1720665847658,0.834,3114.2,3113.6,0.3593956]
[1720665847823,1.11295577,3114.1,3113.7,2.4655]
[1720665848023,1.11295577,3114.0,3113.7,2.4655]
[1720665848428,0.08895551,3113.9,3113.7,2.80738516]
[1720665848829,0.834,3114.2,3113.7,2.80738516]
[1720665849033,1.11296718,3114.1,3113.7,2.80738516]
[1720665849230,1.11296718,3114.0,3113.7,2.80738516]
[1720665849442,0.0889819,3114.1,3113.7,2.80738516]
[1720665849656,0.834,3114.4,3113.8,0.31667808]
[1720665849657,0.0889859,3113.9,3113.8,0.31667808]
[1720665849821,0.834,3114.4,3113.8,0.31667808]
[1720665850020,0.0889859,3113.9,3113.8,0.31667808]
[1720665850540,0.834,3114.4,3113.8,0.31667808]
[1720665850754,1.20170072,3114.3,3113.8,0.31667808]
[1720665851057,1.20170072,3114.3,3114.0,2.3347]
[1720665851058,1.11288754,3114.2,3114.0,2.3347]
[1720665851421,0.0889645,3114.1,3114.0,2.3347]
[1720665851755,1.20185204,3114.1,3114.0,2.3347]
[1720665852253,1.20185774,3114.1,3114.0,2.3347]
[1720665853019,1.20185774,3114.1,3113.6,0.3593956]
[1720665853220,1.11289324,3114.0,3113.7,2.3745]
[1720665853651,1.20163693,3113.9,3113.7,2.3745]
[1720665853857,0.08874369,3113.9,3113.7,2.3745]
[1720665854352,0.834,3114.4,3113.7,2.3745]
[1720665854353,0.08893723,3113.8,3113.7,2.3745]
[1720665854533,0.834,3114.4,3113.7,2.3745]
[1720665854737,1.2019194,3114.3,3113.7,2.61195]
[1720665854946,1.11292573,3114.2,3113.7,2.61195]
[1720665855260,1.20188236,3114.1,3113.7,2.61195]
[1720665855467,1.11287917,3114.0,3113.7,2.61195]
[1720665855627,0.08895663,3114.1,3113.8,0.261195]
[1720665855828,0.08893786,3113.9,3113.8,0.261195]
[1720665856342,0.834,3114.6,3113.8,0.261195]
[1720665856548,1.20188829,3114.5,3113.8,0.261195]
[1720665856858,1.9468789,3114.4,3113.7,2.61195]
[1720665857060,1.1128789,3114.3,3113.7,2.3745]
[1720665857256,1.20186191,3114.3,3113.7,2.3745]
[1720665857460,1.1128789,3114.2,3113.7,2.3745]
[1720665857657,1.9468789,3114.2,3113.7,2.3745]
[1720665857858,1.20184315,3114.1,3113.7,2.3745]
[1720665858167,1.1128789,3114.0,3113.7,2.3745]
[1720665858323,0.08894929,3113.9,3113.7,2.3745]
[1720665858526,1.1128789,3113.8,3113.7,2.3745]
[1720665858865,0.088938,3113.8,3113.7,2.3745]
[1720665859241,1.11294626,3113.8,3113.7,2.3745]
[1720665859461,1.11294626,3114.1,3113.7,2.3745]
[1720665859630,0.088938,3113.8,3113.7,2.3745]
[1720665859832,0.834,3114.4,3113.7,2.61195]
[1720665860032,0.088938,3113.8,3113.7,2.3745]
[1720665860260,0.834,3114.4,3113.7,2.3745]
[1720665860574,1.11291682,3114.3,3113.7,2.3745]
[1720665860871,0.834,3114.4,3113.7,2.3745]
[1720665860872,1.82037244,3114.2,3113.7,2.3745]
[1720665861165,1.73138548,3114.1,3113.7,2.3745]
[1720665861345,1.82034987,3114.0,3113.7,2.3745]
[1720665861551,1.11291682,3113.9,3113.7,2.3745]
[1720665861746,0.08894181,3113.8,3113.7,2.3745]
[1720665862069,1.20185863,3113.8,3113.7,2.3745]
[1720665862286,0.08894181,3113.8,3113.7,2.61195]
[1720665862650,1.17005719,3114.7,3113.7,2.61195]
[1720665862848,1.73157091,3114.6,3113.7,2.61195]
[1720665863082,1.73157091,3114.5,3113.7,2.61195]
[1720665863289,1.73157091,3114.4,3113.7,2.61195]
[1720665863590,1.73157091,3114.3,3113.8,0.261195]
[1720665863896,1.82056232,3114.2,3113.8,0.261195]
[1720665864199,1.73157091,3114.1,3113.8,0.261195]
[1720665864363,1.82051307,3114.0,3113.8,0.261195]
[1720665864554,0.08894216,3114.0,3113.7,2.3745]
[1720665864746,1.17005719,3114.7,3113.7,2.3745]
[1720665864953,1.82071079,3114.6,3113.7,2.3745]
[1720665865252,1.7316971,3114.5,3113.7,2.3745]
[1720665865474,1.7316971,3114.4,3113.7,2.3745]
[1720665865677,1.73158586,3114.3,3113.8,0.53745]
[1720665865880,1.73158586,3114.2,3113.8,0.53745]
[1720665866085,1.73158586,3114.1,3113.8,0.53745]
[1720665866406,0.70728072,3114.0,3113.8,0.53745]
[1720665866558,0.08856818,3114.0,3113.9,0.291195]
[1720665866886,1.73158115,3114.6,3113.9,0.291195]
[1720665867097,1.73158115,3114.5,3113.8,0.53745]
[1720665867314,1.73158115,3114.4,3113.8,0.53745]
[1720665867618,1.82019082,3114.3,3113.8,0.53745]
[1720665867902,1.73158115,3114.2,3113.8,0.53745]
[1720665868103,0.61871947,3114.1,3113.8,0.53745]
[1720665868405,1.82016824,3114.1,3113.8,0.53745]
[1720665868713,1.73157594,3114.0,3113.9,0.291195]
[1720665869060,0.08857962,3114.0,3113.9,0.291195]
[1720665869269,1.20145183,3114.0,3113.9,0.291195]
[1720665869562,1.82019067,3114.0,3113.9,0.291195]
[1720665870182,1.82018128,3114.0,3113.9,0.291195]
[1720665872808,1.8204682,3114.0,3113.9,0.291195]
[1720665873186,1.8204682,3114.0,3113.7,2.3745]
[1720665873377,1.73188858,3113.9,3113.7,2.3745]
[1720665873580,1.8203066,3113.8,3113.2,2.479]
[1720665873792,1.73198752,3113.7,3113.2,2.479]
[1720665874005,0.61902576,3113.6,3113.2,3.313]
[1720665874304,0.834,3114.2,3113.3,0.3313]
[1720665874605,1.82074696,3114.1,3113.3,0.3313]
[1720665874791,0.61914614,3114.0,3113.3,0.3313]
[1720665874994,0.08855356,3113.9,3113.3,0.3313]
[1720665875292,1.73213357,3113.8,3113.3,0.3313]
[1720665875502,1.73213357,3113.7,3113.3,0.3313]
[1720665875681,0.61914614,3113.6,3113.3,0.3313]
[1720665876007,0.834,3114.2,3113.4,0.36443]
[1720665876175,1.82074398,3114.1,3113.4,0.36443]
[1720665876376,1.73216404,3114.0,3113.4,0.36443]
[1720665876581,1.82072141,3113.9,3113.4,0.36443]
[1720665876768,1.73216404,3113.8,3113.4,0.36443]
[1720665876968,1.82069883,3113.7,3113.4,0.36443]
[1720665877203,0.6191787,3113.6,3113.4,0.36443]
[1720665877597,0.61905445,3113.5,3113.4,0.36443]
[1720665877939,0.6190258,3114.1,3113.4,0.36443]
[1720665878118,1.11299543,3114.0,3113.2,3.313]
[1720665878431,1.73202123,3113.9,3113.2,3.313]
[1720665878633,1.73202123,3113.8,3113.2,3.313]
[1720665878803,1.73202123,3113.7,3113.2,3.313]
[1720665878996,1.73202123,3113.6,3113.3,0.3313]
[1720665879194,0.6190258,3113.5,3113.3,0.3313]
[1720665879446,0.834,3114.2,3113.3,0.3313]
[1720665879734,1.82036759,3114.1,3113.2,3.313]
[1720665879936,1.73188859,3114.0,3113.2,3.313]
[1720665880231,1.82034237,3113.9,3113.2,3.313]
[1720665880431,1.73188859,3113.8,3113.2,3.313]
[1720665880733,1.82031979,3113.7,3113.2,3.313]
[1720665880904,1.73188859,3113.6,3113.3,0.3313]
[1720665881106,0.61887892,3113.5,3113.2,3.313]
[1720665881304,0.834,3114.2,3113.2,3.313]
[1720665881507,1.82048683,3114.1,3113.2,3.313]
[1720665881708,1.73200666,3114.0,3113.2,3.313]
[1720665881907,1.82051236,3113.9,3113.3,0.3313]
[1720665882139,1.73205477,3113.8,3113.3,0.3313]
[1720665882310,1.82048978,3113.7,3113.3,0.3313]
[1720665882510,1.73205477,3113.6,3113.3,0.3313]
[1720665882706,0.61902355,3113.5,3113.3,0.3313]
[1720665882911,0.834,3114.2,3113.4,0.28103]
[1720665883247,0.834,3114.2,3113.2,3.313]
[1720665883248,1.82060744,3114.1,3113.2,3.313]
[1720665883538,1.73211965,3114.0,3113.2,3.313]
[1720665883695,1.73211965,3113.9,3113.2,3.313]
[1720665883895,1.82053734,3113.8,3113.2,3.313]
[1720665884223,1.73211965,3113.7,3113.2,3.313]
[1720665884429,1.73211965,3113.6,3113.3,0.3313]
[1720665884597,1.73211965,3113.5,3112.9,2.4783]
[1720665884819,0.834,3113.3,3112.6,2.4783]
[1720665885017,1.73211965,3113.2,3112.6,2.4783]
[1720665885255,1.73211965,3113.1,3112.6,2.4783]
[1720665885417,1.73211965,3113.0,3112.6,2.4783]
[1720665885764,1.82042985,3112.9,3112.6,2.4783]
[1720665885912,0.61908096,3112.8,3112.6,2.4783]
[1720665886120,0.08829142,3112.7,3112.6,2.4783]
[1720665886457,0.834,3113.3,3112.6,2.4783]
[1720665886669,1.73250445,3113.2,3112.6,2.4783]
[1720665886817,1.73250445,3113.1,3112.6,2.4783]
[1720665887024,1.82082975,3113.0,3112.6,2.4783]
[1720665887329,0.61918053,3112.9,3112.6,2.4783]
[1720665887545,0.08830652,3112.8,3112.6,2.4783]
[1720665888054,1.15556,3113.3,3112.6,2.4783]
[1720665888229,0.08829523,3112.7,3112.6,2.4783]
[1720665888617,0.834,3113.3,3112.6,2.4783]
[1720665888819,1.82101424,3113.2,3112.6,2.4783]
[1720665889056,1.73266635,3113.1,3112.6,2.4783]
[1720665889219,0.61930295,3113.0,3112.6,2.4783]
[1720665889420,0.08831401,3112.9,3112.6,2.4783]
[1720665889630,0.08831401,3112.9,3112.3,5.4429]
[1720665889849,0.834,3113.3,3112.4,0.62769]
[1720665890036,1.7327259,3113.2,3112.4,0.62769]
[1720665890244,0.08834789,3113.2,3112.4,0.62769]
[1720665890449,0.61941134,3113.1,3112.4,0.62769]
[1720665890644,0.61941134,3113.1,3112.4,1.46169]
[1720665890951,0.08830625,3113.0,3112.4,1.46169]
[1720665891125,0.834,3113.3,3112.5,0.690459]
[1720665891320,1.82112026,3113.2,3112.5,0.690459]
[1720665891525,0.08832884,3113.2,3112.5,0.690459]
[1720665892268,0.61953472,3113.1,3112.3,5.4429]
[1720665892889,0.08831006,3113.0,3112.3,5.4429]
[1720665893396,0.834,3113.3,3112.3,5.4429]
[1720665893596,1.8212109,3113.2,3112.3,5.4429]
[1720665893889,0.08833265,3113.2,3112.3,6.07059]
[1720665894192,0.08833265,3113.2,3112.3,3.07059]
[1720665894400,2.56681989,3113.1,3112.3,2.4429]
[1720665894702,1.82113376,3113.0,3112.3,2.4429]
[1720665894999,0.61945094,3112.9,3112.3,2.4429]
[1720665895198,0.08809689,3112.8,3112.3,2.4429]
[1720665895570,0.834,3113.1,3112.3,2.4429]
[1720665895793,1.82098821,3113.0,3112.3,2.4429]